bitfinex-derivatives/quotes_ETHF0:USTF0_20241104
["timestamp","ask_amount","ask_price","bid_price","bid_amount"]
[1730725155572,0.40383,2478.1,2478.0,0.85105]
[1730725156372,0.40383,2478.1,2478.0,0.4472]
[1730725156565,3.61163,2478.1,2478.0,0.4472]
[1730725157572,3.61163,2478.1,2478.0,0.85105]
[1730725158167,3.61163,2478.1,2478.0,0.4472]
[1730725158873,0.40383,2478.1,2478.0,0.4472]
[1730725159168,1.43457,2478.2,2477.9,0.443]
[1730725159169,0.40385,2478.0,2477.9,0.443]
[1730725159567,0.40388,2477.8,2477.7,0.8574]
[1730725159763,5.04485,2478.0,2477.6,3.6333]
[1730725159764,1.44469,2477.9,2477.6,3.6333]
[1730725159968,0.4039,2477.7,2477.6,3.6333]
[1730725160170,0.4039,2477.7,2477.6,3.83038426]
[1730725160376,0.4039,2477.7,2477.6,4.41901436]
[1730725161181,0.4039,2477.7,2477.6,3.83038426]
[1730725161480,0.4039,2477.7,2477.6,1.21107995]
[1730725161779,0.4039,2477.7,2477.6,1.61493109]
[1730725163380,0.4039,2477.7,2477.6,1.02642369]
[1730725163679,0.4039,2477.7,2477.6,1.61482954]
[1730725163979,0.4039,2477.7,2477.6,1.02642369]
[1730725164181,0.4039,2477.7,2477.6,0.82941]
[1730725164378,0.4039,2477.7,2477.6,0.4255]
[1730725165267,7.59110603,2477.7,2477.6,0.4255]
[1730725165675,7.59110603,2477.7,2477.5,0.4362]
[1730725165676,0.40391,2477.6,2477.5,0.4362]
[1730725165979,4.43991,2477.6,2477.5,0.4362]
[1730725166366,0.40391,2477.6,2477.5,0.84013]
[1730725166575,0.40391,2477.6,2477.5,0.4362]
[1730725171388,1.85894461,2477.6,2477.5,0.4362]
[1730725175096,0.40397,2477.5,2477.4,0.8765]
[1730725175292,3.61177,2477.5,2477.4,0.8765]
[1730725175692,3.61177,2477.5,2477.4,1.28049]
[1730725179195,0.40397,2477.5,2477.4,1.28049]
[1730725184392,4.66283461,2477.6,2477.4,2.33153461]
[1730725184393,3.2078,2477.6,2477.4,2.33153461]
[1730725184593,3.2078,2477.6,2477.5,0.40397]
[1730725184794,3.2078,2477.6,2477.5,0.85837]
[1730725184994,3.61175,2477.6,2477.5,0.85837]
[1730725185998,3.61175,2477.6,2477.5,0.4544]
[1730725185999,5.06678461,2477.6,2477.5,0.4544]
[1730725186994,5.06678461,2477.6,2477.5,0.85837]
[1730725187293,3.61175,2477.6,2477.5,0.85837]
[1730725187897,3.2078,2477.6,2477.4,0.8765]
[1730725188088,0.40397,2477.5,2477.4,1.28047]
[1730725188299,41.20397,2477.5,2477.4,2.06600755]
[1730725189500,41.20397,2477.5,2477.4,1.28047]
[1730725189702,41.20397,2477.5,2477.4,2.06615195]
[1730725193199,41.20397,2477.5,2477.4,1.28047]
[1730725193395,41.20397,2477.5,2477.4,2.06649326]
[1730725194204,41.20397,2477.5,2477.4,3.00897809]
[1730725194403,41.20397,2477.5,2477.4,2.06649326]
[1730725195310,41.20397,2477.5,2477.4,3.0091705]
[1730725196801,41.20397,2477.5,2477.4,1.86939863]
[1730725197009,41.20397,2477.5,2477.4,2.81255484]
[1730725197303,41.20397,2477.5,2477.4,3.00976745]
[1730725200619,40.8,2477.5,2477.4,3.00976745]
[1730725200904,40.8,2477.5,2477.4,5.24369637]
[1730725201100,41.20397,2477.5,2477.4,3.00976745]
[1730725201304,41.20397,2477.5,2477.4,4.18933241]
[1730725201505,41.20397,2477.5,2477.4,5.24396909]
[1730725201702,41.20397,2477.5,2477.4,3.00976745]
[1730725202703,40.8,2477.5,2477.4,3.00976745]
[1730725203214,3.2078,2477.6,2477.5,0.40397]
[1730725203398,3.15238525,2478.2,2477.8,0.40392]
[1730725203598,41.20388,2478.1,2478.0,0.40387]
[1730725203901,40.8,2478.1,2478.0,2.13494576]
[1730725204212,41.20387,2478.1,2478.0,2.13494576]
[1730725206508,40.8,2478.1,2478.0,2.13494576]
[1730725206712,41.20387,2478.1,2478.0,0.40387]
[1730725206907,41.20387,2478.1,2478.0,2.13332592]
[1730725208015,41.20387,2478.1,2478.0,1.72945592]
[1730725208208,45.68607,2478.1,2478.0,0.19723289]
[1730725208411,0.40391,2477.9,2477.8,1.05655224]
[1730725208609,6.52096416,2477.9,2477.8,1.05655224]
[1730725208815,10.55696416,2477.9,2477.8,1.05655224]
[1730725209116,9.54963708,2477.9,2477.8,1.05655224]
[1730725211014,9.54963708,2477.9,2477.4,0.40398]
[1730725211015,0.40399,2477.5,2477.4,0.40398]
[1730725211214,1.85861708,2477.5,2477.4,1.93688467]
[1730725211410,0.40399,2477.5,2477.4,1.93688467]
[1730725212318,3.55637282,2477.5,2477.4,0.58957872]
[1730725212618,0.40407,2477.0,2476.9,0.40406]
[1730725212917,0.40405,2477.1,2477.0,0.40404]
[1730725213119,0.40405,2477.1,2477.0,1.93675576]
[1730725213416,40.8,2477.1,2477.0,0.99354606]
[1730725213614,40.8,2477.1,2477.0,1.93637429]
[1730725213811,40.8,2477.1,2477.0,5.97317429]
[1730725214012,40.8,2477.1,2477.0,4.44084]
[1730725214315,41.20404,2477.1,2477.0,0.40404]
[1730725214513,41.20404,2477.1,2477.0,1.53173989]
[1730725214713,45.24084,2477.1,2477.0,0.58913073]
[1730725214918,45.69254,2477.1,2477.0,0.58913073]
[1730725215810,41.20404,2477.1,2477.0,0.58913073]
[1730725216018,40.8,2477.1,2477.0,1.9408828]
[1730725216220,41.20404,2477.1,2477.0,1.9408828]
[1730725216710,3.61177,2477.5,2477.4,0.40399]
[1730725216915,0.40397,2477.5,2477.4,0.58913073]
[1730725217213,44.35635282,2477.5,2477.4,0.58913073]
[1730725217414,47.56415282,2477.5,2477.4,0.58913073]
[1730725217610,51.60095282,2477.5,2477.4,0.58913073]
[1730725219022,48.39315282,2477.5,2477.4,0.58913073]
[1730725219521,0.40405,2477.0,2476.9,3.61185]
[1730725219723,0.40405,2477.0,2476.9,5.15141135]
[1730725220219,0.40405,2477.0,2476.9,1.94361135]
[1730725220420,0.40405,2477.0,2476.9,1.19282021]
[1730725220619,0.85115,2477.0,2476.9,1.19282021]
[1730725221126,0.85115,2477.0,2476.9,1.19281591]
[1730725222223,0.4471,2477.0,2476.9,1.19281591]
[1730725222414,0.40404,2477.1,2477.0,0.40405]
[1730725222622,0.40404,2477.1,2477.0,1.19281591]
[1730725224628,0.84713,2477.2,2477.1,0.40404]
[1730725224922,3.6118,2477.4,2477.3,0.404]
[1730725225124,3.6118,2477.4,2477.3,0.78876591]
[1730725225332,3.6118,2477.4,2477.3,1.19276591]
[1730725225829,0.404,2477.4,2477.3,1.19276591]
[1730725226135,6.76418282,2477.4,2477.3,0.78876591]
[1730725226628,6.76418282,2477.4,2477.2,1.726]
[1730725226629,0.404,2477.3,2477.2,1.726]
[1730725227019,6.36018282,2477.4,2477.2,1.322]
[1730725227218,3.2078,2477.4,2477.3,0.404]
[1730725228226,3.2078,2477.4,2477.3,1.19173569]
[1730725229026,3.61179,2477.4,2477.3,1.19173569]
[1730725229929,0.40399,2477.4,2477.3,1.19173569]
[1730725230131,0.40399,2477.4,2477.3,1.1917774]
[1730725231131,40.8,2477.5,2477.3,0.7877774]
[1730725231332,41.20398,2477.5,2477.4,1.1917674]
[1730725231624,40.8,2477.5,2477.4,1.19196223]
[1730725231828,40.8,2477.5,2477.4,8.43656223]
[1730725232228,40.8,2477.5,2477.4,4.39976223]
[1730725232430,40.8,2477.5,2477.4,8.43656223]
[1730725232928,40.8,2477.5,2477.4,9.38291249]
[1730725233134,40.8,2477.5,2477.4,10.80363743]
[1730725233731,0.40391,2478.0,2477.9,0.40388]
[1730725234033,0.40389,2478.1,2478.0,0.40387]
[1730725234230,41.20389,2478.1,2478.0,2.52726552]
[1730725234530,40.8,2478.1,2478.0,2.52726552]
[1730725234734,40.8,2478.1,2478.0,6.56246552]
[1730725235036,40.8,2478.1,2478.0,9.76980801]
[1730725235223,40.8,2478.1,2478.0,10.23323234]
[1730725235538,0.4038,2478.6,2478.1,1.00969]
[1730725235730,0.4038,2478.6,2478.5,0.40379]
[1730725235929,3.2078,2478.7,2478.6,0.40379]
[1730725235930,3.61158,2478.7,2478.6,0.40379]
[1730725236131,3.61158,2478.7,2478.6,1.29569]
[1730725236535,44.41158,2478.7,2478.6,1.29569]
[1730725236729,44.0078,2478.7,2478.6,1.29569]
[1730725236926,44.41158,2478.7,2478.6,1.29569]
[1730725237329,44.41158,2478.7,2478.6,0.8919]
[1730725237730,44.41158,2478.7,2478.6,1.29569]
[1730725239429,44.41158,2478.7,2478.6,0.8919]
[1730725239625,44.41158,2478.7,2478.4,0.85972]
[1730725239626,0.40381,2478.5,2478.4,0.85972]
[1730725240132,0.40381,2478.5,2478.4,0.4559]
[1730725240739,3.15238282,2478.5,2478.2,0.84615]
[1730725240944,0.40385,2478.3,2478.2,0.40384]
[1730725242241,0.40385,2478.3,2478.2,3.61164]
[1730725242942,0.40385,2478.3,2478.2,0.40384]
[1730725243331,0.40385,2478.3,2478.2,3.61164]
[1730725243536,3.15238282,2478.3,2478.0,1.3102]
[1730725243843,3.15238282,2478.3,2477.6,1.00987]
[1730725243844,0.40389,2478.0,2477.9,0.4039]
[1730725244045,0.40393,2477.8,2477.7,0.40393]
[1730725244345,0.40392,2477.9,2477.8,0.4039]
[1730725244545,41.20392,2477.9,2477.8,0.4039]
[1730725245145,0.40394,2477.8,2477.7,0.40394]
[1730725245365,40.8,2477.9,2477.6,1.2923]
[1730725245545,0.40394,2477.7,2477.6,1.69625]
[1730725245846,0.40393,2477.8,2477.7,0.40392]
[1730725246641,0.40393,2477.8,2477.6,1.2923]
[1730725246642,41.20391,2477.9,2477.8,0.40392]
[1730725246850,40.8,2477.9,2477.8,3.61172]
[1730725247242,40.8,2477.9,2477.8,7.64772]
[1730725247439,0.9095,2478.5,2478.0,1.0097]
[1730725247440,0.463,2478.5,2478.0,1.0097]
[1730725247748,0.86681,2478.5,2478.4,0.40382]
[1730725248048,41.66681,2478.5,2478.4,0.40382]
[1730725248446,41.263,2478.5,2478.2,3.2078]
[1730725248845,41.263,2478.5,2478.2,3.61165]
[1730725248846,0.40384,2478.3,2478.2,3.61165]
[1730725249851,0.40384,2478.3,2478.1,1.3249]
[1730725250049,0.40386,2478.2,2478.1,1.72877]
[1730725251241,0.40386,2478.2,2477.8,3.2078]
[1730725251242,1.00957,2478.4,2477.8,3.2078]
[1730725251440,44.4708,2478.5,2478.0,0.40388]
[1730725251441,0.40389,2478.1,2478.0,0.40388]
[1730725252243,0.84259,2478.1,2478.0,0.40388]
[1730725253247,0.40389,2478.0,2477.9,1.31099]
[1730725259751,0.40389,2478.0,2477.9,0.9071]
[1730725260253,0.40389,2478.0,2477.9,0.4562]
[1730725260553,0.4387,2478.1,2477.8,0.4275]
[1730725260855,1.44839,2478.1,2477.7,3.6457]
[1730725261049,0.40392,2477.9,2477.8,0.40391]
[1730725262053,0.40392,2477.8,2477.7,3.61173]
[1730725262258,0.40392,2477.8,2477.7,3.2078]
[1730725262555,0.40399,2477.4,2477.3,1.70228]
[1730725262861,0.40399,2477.4,2477.3,1.27918]
[1730725263053,41.20399,2477.4,2477.3,1.27918]
[1730725263254,40.8,2477.4,2477.3,1.27918]
[1730725263756,40.8,2477.4,2477.3,12.4616933]
[1730725263955,6.36018282,2478.2,2477.3,13.11216285]
[1730725263956,7.82384282,2478.2,2477.3,13.11216285]
[1730725264258,0.4039,2478.0,2477.9,0.40389]
[1730725264461,0.84388,2478.1,2478.0,0.40389]
[1730725264656,0.40388,2478.1,2478.0,0.40389]
[1730725264860,41.20388,2478.1,2478.0,0.40389]
[1730725266956,0.40391,2478.0,2477.9,0.4039]
[1730725267155,0.40395,2477.7,2477.6,0.40394]
[1730725267460,1.00977,2477.9,2477.3,5.79951137]
[1730725267461,0.40395,2477.6,2477.4,1.45841955]
[1730725267654,0.40399,2477.4,2477.3,3.6118]
[1730725267855,41.20399,2477.4,2477.3,3.2078]
[1730725268160,41.20399,2477.4,2477.3,3.6118]
[1730725268361,40.8,2477.4,2477.3,3.6118]
[1730725268662,40.8,2477.4,2477.3,3.80786147]
[1730725268859,40.8,2477.4,2477.3,11.58741681]
[1730725269051,40.8,2477.4,2477.3,13.58624801]
[1730725271062,0.40395,2477.7,2477.6,0.40395]
[1730725271259,0.40395,2477.7,2477.6,1.19072217]
[1730725271453,41.20395,2477.7,2477.6,0.40395]
[1730725271849,41.20395,2477.7,2477.6,0.84865]
[1730725272154,41.20395,2477.7,2477.6,1.63557806]
[1730725272956,41.20395,2477.7,2477.6,0.84865]
[1730725273260,41.20395,2477.7,2477.6,1.63594172]
[1730725275558,40.8,2477.7,2477.6,1.63594172]
[1730725275760,41.20394,2477.7,2477.6,0.84865]
[1730725275960,41.20394,2477.7,2477.6,1.23282493]
[1730725276263,0.404,2477.3,2477.2,4.66625955]
[1730725276455,0.404,2477.3,2477.2,4.94320767]
[1730725276657,3.6118,2477.3,2477.2,1.73540767]
[1730725276861,6.76418282,2477.3,2477.2,1.73540767]
[1730725277060,10.80098282,2477.3,2477.2,0.78840379]
[1730725278156,10.80098282,2477.3,2476.8,1.91044955]
[1730725278157,10.39698282,2477.3,2477.1,0.40403]
[1730725278360,0.83072,2477.2,2477.1,0.40403]
[1730725278557,0.83072,2477.2,2477.1,1.19251974]
[1730725279163,1.00995,2477.5,2477.1,0.78848974]
[1730725279470,0.4192,2477.5,2477.2,1.22691392]
[1730725279770,0.82318,2477.5,2477.4,0.40399]
[1730725279958,0.82318,2477.5,2477.4,1.19220496]
[1730725280164,0.82318,2477.5,2477.4,0.40399]
[1730725280674,0.4192,2477.5,2477.3,0.4253]
[1730725280966,0.40399,2477.4,2477.3,0.82929]
[1730725281166,0.40399,2477.4,2477.3,1.6174233]
[1730725281769,0.40399,2477.4,2477.3,1.1921233]
[1730725282069,0.40399,2477.4,2477.3,0.7881333]
[1730725282256,0.40403,2477.2,2477.1,0.40402]
[1730725282464,0.40403,2477.2,2477.1,1.19238514]
[1730725282961,3.627,2477.5,2477.1,0.78836514]
[1730725283168,0.404,2477.4,2477.3,0.404]
[1730725283366,0.40399,2477.4,2477.3,0.404]
[1730725283565,4.44079,2477.4,2477.3,0.404]
[1730725284363,0.4192,2477.5,2477.4,0.40399]
[1730725284562,0.82317,2477.5,2477.4,2.08395373]
[1730725286368,0.82317,2477.5,2477.4,2.08418998]
[1730725287472,10.80095282,2477.5,2477.4,0.78916371]
[1730725287768,10.80095282,2477.5,2477.2,0.40401]
[1730725287769,0.40402,2477.3,2477.2,0.40401]
[1730725287972,0.40402,2477.3,2477.2,1.19329024]
[1730725291067,7.66308282,2477.5,2477.2,0.78928024]
[1730725291272,0.404,2477.4,2477.3,1.19386622]
[1730725291771,0.83617,2477.5,2477.4,0.40399]
[1730725291973,0.83617,2477.5,2477.4,1.89380286]
[1730725292167,0.83617,2477.5,2477.4,2.09058664]
[1730725293277,4.87297,2477.5,2477.4,2.09058664]
[1730725294281,0.83617,2477.5,2477.4,2.09058664]
[1730725295672,0.83617,2477.5,2477.4,1.30109]
[1730725296274,0.83617,2477.5,2477.4,0.84259]
[1730725296576,0.83617,2477.5,2477.4,0.40399]
[1730725297076,0.83617,2477.5,2477.4,0.99653035]
[1730725297677,0.83617,2477.5,2477.4,0.40399]
[1730725298875,0.83617,2477.5,2477.4,1.19321455]
[1730725302576,0.83617,2477.5,2477.4,0.40399]
[1730725302782,0.83617,2477.5,2477.4,1.19342528]
[1730725305387,0.83617,2477.5,2477.4,2.14189602]
[1730725306171,0.40397,2477.6,2477.5,0.40395]
[1730725306485,41.20395,2477.7,2477.6,0.40395]
[1730725306680,41.20395,2477.7,2477.6,3.02646099]
[1730725309781,41.20395,2477.7,2477.6,3.02662075]
[1730725310681,44.35633282,2477.7,2477.6,2.59042075]
[1730725311079,44.35633282,2477.7,2477.6,2.18647075]
[1730725311591,44.35633282,2477.7,2477.6,2.59042075]
[1730725311787,44.35633282,2477.7,2477.6,2.14152075]
[1730725312081,44.35633282,2477.7,2477.6,1.73757075]
[1730725313374,44.35632282,2477.7,2477.6,1.74764098]
[1730725313782,44.35632282,2477.7,2477.6,1.74764058]
[1730725314887,44.35632282,2477.7,2477.6,2.15159058]
[1730725315786,44.35632282,2477.7,2477.6,1.74764058]
[1730725316492,44.35632282,2477.7,2477.6,0.79335263]
[1730725317085,0.40395,2477.6,2477.5,0.40397]
[1730725317288,0.40395,2477.6,2477.5,1.55539039]
[1730725317590,0.40395,2477.6,2477.5,2.15192777]
[1730725317989,0.40395,2477.6,2477.5,1.74795777]
[1730725318184,0.40395,2477.6,2477.5,2.15192777]
[1730725319482,0.40395,2477.6,2477.5,1.74795777]
[1730725319687,4.43995,2477.6,2477.5,0.79350125]
[1730725319888,0.40402,2477.2,2477.1,0.40403]
[1730725320090,6.36018282,2477.4,2477.1,0.95487896]
[1730725320281,0.40402,2477.3,2477.2,1.35886563]
[1730725323083,0.40402,2477.3,2477.2,1.34085441]
[1730725323489,0.40402,2477.3,2477.2,1.39365441]
[1730725324088,0.40402,2477.3,2477.2,0.93685441]
[1730725324089,3.61182,2477.3,2477.2,0.93685441]
[1730725324296,0.40404,2477.2,2477.1,0.40403]
[1730725324494,0.40404,2477.2,2477.1,0.93716775]
[1730725325195,0.86184,2477.2,2477.1,0.93716775]
[1730725325395,7.64698282,2477.2,2476.9,1.05444955]
[1730725325605,3.15238282,2477.0,2476.7,1.45854955]
[1730725325799,0.40407,2476.9,2476.8,1.3958703]
[1730725326294,0.40407,2476.9,2476.8,0.4585]
[1730725326703,0.40407,2476.9,2476.8,0.86259]
[1730725327206,0.40407,2476.9,2476.8,1.79503951]
[1730725327501,0.40407,2476.9,2476.8,0.86259]
[1730725329107,1.0101,2477.1,2476.7,0.40409]
[1730725329408,0.40409,2476.8,2476.7,0.40409]
[1730725330411,0.40409,2476.9,2476.8,0.40407]
[1730725331803,0.40409,2476.9,2476.8,1.18288728]
[1730725332308,0.40406,2477.1,2477.0,0.40404]
[1730725332612,0.40403,2477.2,2477.1,0.40404]
[1730725332808,0.40403,2477.2,2477.1,1.61137554]
[1730725334709,4.64777,2477.5,2477.1,1.20733554]
[1730725334914,0.40402,2477.3,2477.2,1.04039416]
[1730725336207,4.64777,2477.5,2477.2,1.04039416]
[1730725336208,0.404,2477.4,2477.3,0.40399]
[1730725337616,0.404,2477.4,2477.3,0.6003504]
[1730725337913,3.61179,2477.5,2477.4,0.40399]
[1730725338114,3.61179,2477.5,2477.4,1.0592504]
[1730725339209,0.40397,2477.5,2477.4,1.0592504]
[1730725339411,0.40397,2477.5,2477.4,1.64119864]
[1730725341013,0.40397,2477.6,2477.5,0.40395]
[1730725341318,0.40397,2477.6,2477.5,0.85405]
[1730725343114,41.2486,2477.7,2477.5,0.4501]
[1730725343317,41.65255,2477.7,2477.6,0.40395]
[1730725343614,0.40395,2477.6,2477.5,0.85406]
[1730725343809,0.40395,2477.6,2477.5,1.05044186]
[1730725344126,40.8,2477.7,2477.6,0.40395]
[1730725344312,40.8,2477.7,2477.6,5.21818725]
[1730725344709,40.8,2477.7,2477.6,4.6362367]
[1730725344910,41.20394,2477.7,2477.6,5.21792519]
[1730725345318,40.8,2477.7,2477.6,5.21792519]
[1730725346021,40.8,2477.7,2477.6,6.14825168]
[1730725346209,4.21746,2478.2,2477.9,0.40389]
[1730725346210,0.40391,2478.0,2477.9,0.40389]
[1730725346412,0.40391,2478.0,2477.9,0.60005982]
[1730725346914,41.20389,2478.0,2477.9,1.02595982]
[1730725347110,41.20389,2478.0,2477.9,1.60724822]
[1730725348318,40.8,2478.0,2477.9,5.06105713]
[1730725348508,0.4445,2478.7,2477.9,10.95722994]
[1730725348715,0.4038,2478.6,2478.5,0.40379]
[1730725348911,0.4445,2478.7,2478.5,0.40379]
[1730725348912,0.4445,2478.7,2478.6,0.40379]
[1730725349113,0.40377,2478.8,2478.7,0.40377]
[1730725349409,41.20377,2478.8,2478.7,0.40377]
[1730725349725,40.8,2478.8,2478.7,0.40377]
[1730725349913,41.20376,2478.8,2478.7,0.40377]
[1730725350216,40.8,2478.8,2478.7,0.40377]
[1730725350919,40.8,2478.8,2478.7,4.43817]
[1730725351120,40.8,2478.8,2478.7,8.3691229]
[1730725351318,40.8,2478.8,2478.7,7.7859929]
[1730725352207,40.8,2478.8,2478.7,7.59055282]
[1730725352923,40.8,2478.8,2478.7,7.78588348]
[1730725353117,0.40371,2479.1,2478.7,7.38211348]
[1730725353322,0.4037,2479.2,2479.1,0.40369]
[1730725353825,40.8,2479.2,2478.9,0.9009]
[1730725354118,0.40373,2479.0,2478.9,0.443]
[1730725354324,3.6692,2479.1,2478.3,3.2078]
[1730725354621,0.40381,2478.5,2478.4,0.40382]
[1730725355123,0.4038,2478.6,2478.5,0.4038]
[1730725355816,0.40381,2478.5,2478.4,0.40381]
[1730725356513,0.40381,2478.6,2478.5,0.4038]
[1730725358312,0.4038,2478.6,2478.3,4.0953]
[1730725358517,0.4038,2478.6,2478.5,0.40381]
[1730725359417,0.40382,2478.5,2478.4,0.40382]
[1730725359813,0.4038,2478.6,2478.5,0.4038]
[1730725362820,0.40377,2478.8,2478.7,0.40376]
[1730725363217,0.40376,2478.8,2478.7,0.40376]
[1730725363421,0.4349,2478.9,2478.6,3.2078]
[1730725363422,0.83865,2478.9,2478.8,0.40376]
[1730725364321,0.83865,2478.9,2478.8,0.83476]
[1730725364621,0.83864,2478.9,2478.8,0.83476]
[1730725365027,0.4349,2478.9,2478.8,0.83476]
[1730725365227,0.83864,2478.9,2478.8,0.83476]
[1730725365526,0.4349,2478.9,2478.8,0.83476]
[1730725365832,0.40374,2479.0,2478.9,0.40374]
[1730725366721,0.4449,2479.1,2479.0,0.40373]
[1730725366922,0.84861,2479.1,2479.0,0.40373]
[1730725367230,0.4449,2479.1,2479.0,0.40373]
[1730725367730,41.20369,2479.2,2479.1,0.40371]
[1730725367922,40.8,2479.2,2479.1,0.40371]
[1730725369631,40.8,2479.2,2479.1,0.82881]
[1730725371120,40.8,2479.2,2479.1,4.86241]
[1730725372037,0.4465,2479.4,2479.3,0.40368]
[1730725372429,41.65016,2479.4,2479.3,0.40368]
[1730725373127,0.40369,2479.3,2479.2,0.40368]
[1730725374035,41.20369,2479.3,2479.2,0.40368]
[1730725374232,41.20369,2479.3,2479.0,3.61151]
[1730725374233,0.40371,2479.1,2479.0,3.61151]
[1730725374435,41.80921,2479.3,2479.1,0.4037]
[1730725374436,0.40371,2479.2,2479.1,0.4037]
[1730725374634,0.2,2480.0,2479.1,7.18598282]
[1730725374836,0.4036,2479.8,2479.6,0.40363]
[1730725375043,0.2,2480.0,2479.7,3.6479]
[1730725375339,0.4036,2479.8,2479.7,0.40361]
[1730725375531,41.2036,2479.9,2479.8,0.4036]
[1730725375737,0.40361,2479.8,2479.7,0.40361]
[1730725376236,40.8,2479.9,2479.5,0.4401]
[1730725376433,41.20359,2479.9,2479.8,0.4036]
[1730725377638,40.8,2479.9,2479.8,0.4036]
[1730725377830,41.20358,2479.9,2479.8,0.4036]
[1730725378029,0.4036,2479.8,2479.7,0.4036]
[1730725379234,0.40361,2479.8,2479.7,0.4036]
[1730725379633,41.20359,2479.9,2479.8,0.4036]
[1730725379836,40.8,2479.9,2479.8,0.4036]
[1730725380033,41.20358,2479.9,2479.8,0.4036]
[1730725381039,40.8,2479.9,2479.8,0.4036]
[1730725381535,40.8,2479.9,2479.8,3.55598282]
[1730725381732,40.8,2479.9,2479.8,7.58878282]
[1730725381938,0.2,2480.0,2479.8,7.18518282]
[1730725382135,0.2,2480.0,2479.9,8.08368]
[1730725383230,0.2,2480.0,2479.9,8.65903252]
[1730725383435,0.2,2480.0,2479.9,8.65901428]
[1730725383934,20.0,2480.1,2480.0,3.55594282]
[1730725384148,20.0,2480.1,2480.0,8.6049771]
[1730725384438,20.0,2480.1,2480.0,9.0672771]
[1730725385532,20.0,2480.1,2480.0,9.98926436]
[1730725388435,20.0,2480.1,2480.0,1.88289428]
[1730725389245,20.0,2480.1,2480.0,1.88373888]
[1730725389537,20.40355,2480.1,2480.0,0.98053888]
[1730725389726,20.0,2480.1,2479.9,3.2078]
[1730725389931,0.40358,2479.9,2479.8,1.29749]
[1730725390131,0.40358,2479.9,2479.8,0.57706471]
[1730725390437,0.83317,2480.0,2479.9,0.40358]
[1730725390633,0.40357,2480.0,2479.9,0.40358]
[1730725390844,41.20357,2480.0,2479.9,0.40358]
[1730725391136,40.8,2480.0,2479.9,0.40358]
[1730725391335,40.8,2480.0,2479.9,0.98110319]
[1730725392141,40.8,2480.0,2479.9,1.44430319]
[1730725393237,41.20356,2480.0,2479.9,1.44430319]
[1730725393436,0.40361,2479.8,2479.7,0.40361]
[1730725393735,0.40361,2479.8,2479.7,0.98156325]
[1730725393939,0.40361,2479.8,2479.7,0.40361]
[1730725394137,0.85691,2479.8,2479.7,0.40361]
[1730725394536,0.85691,2479.8,2479.6,0.40362]
[1730725394537,0.40362,2479.7,2479.6,0.40362]
[1730725394845,0.40362,2479.7,2479.6,0.98152405]
[1730725395042,40.8,2480.0,2479.6,5.53525794]
[1730725395231,40.8,2480.0,2479.7,0.57790405]
[1730725395542,41.20357,2480.0,2479.9,0.40358]
[1730725395743,40.8,2480.0,2479.9,0.40358]
[1730725396143,41.20356,2480.0,2479.9,0.40358]
[1730725398446,40.8,2480.0,2479.9,0.40358]
[1730725398840,20.0,2480.1,2480.0,0.40356]
[1730725399347,60.8,2480.1,2480.0,0.40356]
[1730725401847,60.8,2480.1,2480.0,4.43556]
[1730725401848,20.0,2480.1,2480.0,4.43556]
[1730725402144,20.0,2480.1,2480.0,7.58794282]
[1730725402448,20.0,2480.1,2480.0,9.28467131]
[1730725402748,20.0,2480.1,2480.0,7.58794282]
[1730725402945,20.0,2480.1,2480.0,8.36050008]
[1730725403538,20.0,2480.1,2480.0,9.28463921]
[1730725404340,20.0,2480.1,2480.0,8.36050008]
[1730725404738,20.0,2480.1,2480.0,0.98111835]
[1730725404943,20.0,2480.1,2480.0,0.40356]
[1730725405149,20.4485,2480.1,2480.0,0.40356]
[1730725405343,20.0,2480.1,2480.0,4.13373604]
[1730725405843,20.0,2480.1,2480.0,3.55594282]
[1730725406249,20.0,2480.1,2480.0,0.40356]
[1730725407746,20.40355,2480.1,2480.0,0.40356]
[1730725407947,20.0,2480.1,2480.0,0.40356]
[1730725409054,20.0,2480.1,2480.0,4.43556]
[1730725409256,20.0,2480.1,2480.0,5.20948677]
[1730725409556,20.0,2480.1,2480.0,8.36186959]
[1730725409753,20.0,2480.1,2480.0,9.28772277]
[1730725410055,20.0,2480.1,2480.0,9.28771318]
[1730725412649,20.0,2480.1,2480.0,10.44592128]
[1730725413049,20.0,2480.1,2480.0,9.86831121]
[1730725413249,20.0,2480.1,2480.0,10.4477838]
[1730725413452,20.0,2480.1,2480.0,10.44780989]
[1730725413750,20.0,2480.1,2480.0,10.44816577]
[1730725413950,20.0,2480.1,2480.0,5.25761038]
[1730725414257,20.0,2480.1,2480.0,6.13722756]
[1730725414456,20.0,2480.1,2480.0,9.28961038]
[1730725414652,20.0,2480.1,2480.0,10.44839811]
[1730725414952,20.0,2480.1,2480.0,10.44857499]
[1730725416256,20.0,2480.1,2480.0,6.41657499]
[1730725416455,20.0,2480.1,2480.0,6.41762507]
[1730725416650,20.0,2480.1,2480.0,2.10605238]
[1730725416948,19.39451216,2480.1,2480.0,2.10605238]
[1730725418958,19.39451216,2480.1,2480.0,0.83626]
[1730725419159,19.39451216,2480.1,2480.0,2.53989036]
[1730725420354,19.39451216,2480.1,2480.0,3.70033989]
[1730725420758,19.39451216,2480.1,2480.0,3.70014498]
[1730725420957,19.39451216,2480.1,2480.0,2.10719036]
[1730725421254,19.39451216,2480.1,2480.0,1.70363036]
[1730725421678,19.79806216,2480.1,2480.0,2.10719036]
[1730725421862,20.26206216,2480.1,2480.0,1.70363036]
[1730725422359,24.29406216,2480.1,2480.0,1.70363036]
[1730725422554,24.29406216,2480.1,2480.0,0.77573993]
[1730725423250,30.65424498,2480.1,2480.0,0.77573993]
[1730725423450,30.25069498,2480.1,2479.5,1.0518967]
[1730725423653,0.40361,2479.7,2479.6,0.92882054]